bitfinex-derivatives/quotes_BNBF0:USTF0_20250529
["timestamp","ask_amount","ask_price","bid_price","bid_amount"]
[1748533088419,0.29294157,682.73,681.4,0.46404119]
[1748533088920,0.29294157,682.73,681.41,0.46404119]
[1748533089422,0.29294157,682.73,681.29,0.29356074]
[1748533089423,0.29294157,682.73,681.39,0.46404119]
[1748533089621,0.29294157,682.73,681.38,0.46404119]
[1748533089821,0.29294157,682.73,681.4,0.46404119]
[1748533090422,0.29294157,682.73,681.38,0.46404119]
[1748533090623,0.29294157,682.73,681.36,0.46404119]
[1748533092321,0.29294157,682.73,681.35,0.46404119]
[1748533092825,0.29294157,682.73,681.34,0.46404119]
[1748533093426,0.29294157,682.73,681.33,0.46404119]
[1748533094225,0.29294157,682.73,681.38,0.46404119]
[1748533094426,0.29294157,682.73,681.37,0.46404119]
[1748533095321,0.29294157,682.73,681.36,0.46404119]
[1748533096322,0.29294157,682.73,681.29,0.29356074]
[1748533096323,0.29294157,682.73,681.33,0.46404119]
[1748533096826,0.29294157,682.73,681.31,0.46404119]
[1748533097432,0.29294157,682.73,681.4,0.46404119]
[1748533097632,0.29294157,682.73,681.39,0.46404119]
[1748533098431,0.29294157,682.73,681.38,0.46404119]
[1748533098731,0.29294157,682.73,681.31,0.46404119]
[1748533098931,0.29294157,682.73,681.3,0.46404119]
[1748533099332,0.29294157,682.73,681.29,0.29356074]
[1748533129355,0.29294157,682.73,681.29,0.75760193]
[1748533129958,0.29294157,682.73,681.29,0.29356074]
[1748533130357,0.29294157,682.73,681.29,0.75760193]
[1748533131460,0.29294157,682.73,681.3,0.46404119]
[1748533132761,0.29294157,682.73,681.31,0.46404119]
[1748533132958,0.29294157,682.73,681.3,0.46404119]
[1748533133163,0.29294157,682.73,681.29,0.29356074]
[1748533133363,0.29294157,682.73,681.29,0.75760193]
[1748533134261,0.29294157,682.73,681.3,0.46404119]
[1748533136162,0.29294157,682.73,681.31,0.46404119]
[1748533136362,0.29294157,682.73,681.29,0.29356074]
[1748533145268,0.29294157,682.73,681.29,0.75760193]
[1748533145468,0.29294157,682.73,681.29,0.29356074]
[1748533146268,0.29294157,682.73,681.31,0.46404119]
[1748533147170,0.29294157,682.73,681.32,0.46404119]
[1748533147469,0.29294157,682.73,681.33,0.46404119]
[1748533147665,0.29294157,682.73,681.34,0.46404119]
[1748533148670,0.29294157,682.73,681.35,0.46404119]
[1748533149072,0.29294157,682.73,681.46,0.46404119]
[1748533150268,0.29294157,682.73,681.47,0.46404119]
[1748533150472,0.29294157,682.73,681.48,0.46404119]
[1748533151674,0.29294157,682.73,681.45,0.46404119]
[1748533152075,0.29294157,682.73,681.36,0.46404119]
[1748533152276,0.29294157,682.73,681.38,0.46404119]
[1748533152774,0.29294157,682.73,681.3,0.46404119]
[1748533152976,0.29294157,682.73,681.31,0.46404119]
[1748533153175,0.29294157,682.73,681.3,0.46404119]
[1748533153377,0.29294157,682.73,681.31,0.46404119]
[1748533154675,0.29294157,682.73,681.29,0.29356074]
[1748533169591,0.29294157,682.73,680.9,0.46404119]
[1748533169790,0.29294157,682.73,680.9,0.75777007]
[1748533170495,0.29294157,682.73,680.9,0.29372888]
[1748533173397,0.29294157,682.73,681.05,0.46404119]
[1748533173596,0.29294157,682.73,681.01,0.46404119]
[1748533174097,0.29294157,682.73,681.03,0.46404119]
[1748533174398,0.29294157,682.73,680.9,0.29372888]
[1748533174399,0.29294157,682.73,681.0,0.46404119]
[1748533175095,0.29294157,682.73,680.9,0.29372888]
[1748533184302,0.29294157,682.73,680.9,0.75777007]
[1748533184905,0.29294157,682.73,680.96,0.46404119]
[1748533185103,0.29294157,682.73,680.95,0.46404119]
[1748533185504,0.29294157,682.73,680.96,0.46404119]
[1748533186415,0.29294157,682.73,680.95,0.46404119]
[1748533189010,0.29294157,682.73,680.9,0.29372888]
[1748533193518,0.25524237,682.28,680.9,0.29372888]
[1748533193719,0.29313907,682.27,680.9,0.29372888]
[1748533247866,0.29313907,682.27,680.93,0.46671481]
[1748533248563,0.29313907,682.27,680.94,0.46671481]
[1748533249373,0.29313907,682.27,680.9,0.29372888]
[1748533249565,0.29313907,682.27,680.91,0.46671481]
[1748533250070,0.29313907,682.27,680.92,0.46671481]
[1748533250268,0.29313907,682.27,680.91,0.46671481]
[1748533250471,0.29313907,682.27,680.9,0.29372888]
[1748533259480,0.29313907,682.27,680.93,0.46671481]
[1748533260381,0.29313907,682.27,680.9,0.29372888]
[1748533270388,0.29313907,682.27,680.9,0.76044369]
[1748533270688,0.29313907,682.27,680.91,0.46671481]
[1748533271188,0.29313907,682.27,680.9,0.76044369]
[1748533271488,0.29313907,682.27,680.91,0.46671481]
[1748533272185,0.29313907,682.27,680.9,0.76044369]
[1748533272382,0.29313907,682.27,680.9,0.29372888]
[1748533289598,0.29313907,682.27,680.99,0.46671481]
[1748533289797,0.29313907,682.27,681.0,0.46671481]
[1748533290003,0.29313907,682.27,680.98,0.46671481]
[1748533290299,0.29313907,682.27,680.95,0.46671481]
[1748533291597,0.29313907,682.27,680.9,0.29372888]
[1748533291598,0.29313907,682.27,680.96,0.46671481]
[1748533291997,0.29313907,682.27,680.92,0.46671481]
[1748533292202,0.29313907,682.27,680.9,0.76044369]
[1748533293307,0.29313907,682.27,680.9,0.29372888]
[1748533326032,0.29313907,682.27,680.52,0.46671481]
[1748533326228,0.29313907,682.27,680.54,0.46671481]
[1748533326427,0.29313907,682.27,680.54,0.76059907]
[1748533327328,0.29313907,682.27,680.56,0.46671481]
[1748533327529,0.29313907,682.27,680.62,0.46671481]
[1748533328033,0.29313907,682.27,680.65,0.46671481]
[1748533328433,0.29313907,682.27,680.64,0.46671481]
[1748533328633,0.29313907,682.27,680.54,0.29388426]
[1748533328634,0.29313907,682.27,680.65,0.46671481]
[1748533329134,0.29313907,682.27,680.84,0.46671481]
[1748533329335,0.29313907,682.27,680.54,0.29388426]
[1748533329336,0.29313907,682.27,680.71,0.46671481]
[1748533329535,0.29313907,682.27,680.68,0.46671481]
[1748533329932,0.29313907,682.27,680.69,0.46671481]
[1748533330135,0.29313907,682.27,680.68,0.46671481]
[1748533330535,0.29313907,682.27,680.69,0.46671481]
[1748533330933,0.29313907,682.27,680.68,0.46671481]
[1748533331132,0.29313907,682.27,680.65,0.46671481]
[1748533331336,0.29313907,682.27,680.64,0.46671481]
[1748533331533,0.29313907,682.27,680.58,0.46671481]
[1748533331732,0.29313907,682.27,680.59,0.46671481]
[1748533332332,0.29313907,682.27,680.54,0.29388426]
[1748533332333,0.29313907,682.27,680.61,0.46671481]
[1748533332532,0.29313907,682.27,680.62,0.46671481]
[1748533332832,0.29313907,682.27,680.61,0.46671481]
[1748533333036,0.29313907,682.27,680.62,0.46671481]
[1748533333236,0.29313907,682.27,680.61,0.46671481]
[1748533333638,0.29313907,682.27,680.62,0.46671481]
[1748533333933,0.29313907,682.27,680.63,0.46671481]
[1748533334233,0.29313907,682.27,680.54,0.29388426]
[1748533334234,0.29313907,682.27,680.61,0.46671481]
[1748533334637,0.29313907,682.27,680.54,0.29388426]
[1748533334638,0.29313907,682.27,680.63,0.46671481]
[1748533335235,0.29313907,682.27,680.54,0.29388426]
[1748533335236,0.29313907,682.27,680.55,0.46671481]
[1748533335540,0.29313907,682.27,680.54,0.29388426]
[1748533345744,0.29313907,682.27,680.59,0.46671481]
[1748533345949,0.29313907,682.27,680.6,0.46671481]
[1748533347450,0.29313907,682.27,680.59,0.46671481]
[1748533347650,0.29313907,682.27,680.63,0.46671481]
[1748533349553,0.29313907,682.27,680.59,0.46671481]
[1748533350247,0.29313907,682.27,680.6,0.46671481]
[1748533350451,0.29313907,682.27,680.59,0.46671481]
[1748533350650,0.29313907,682.27,680.54,0.29388426]
[1748533350651,0.29313907,682.27,680.61,0.46671481]
[1748533354855,0.29313907,682.27,680.66,0.46671481]
[1748533355656,0.29313907,682.27,680.73,0.46671481]
[1748533356556,0.29313907,682.27,680.54,0.29388426]
[1748533356557,0.29313907,682.27,680.72,0.46671481]
[1748533356757,0.29313907,682.27,680.54,0.29388426]
[1748533356758,0.29313907,682.27,680.69,0.46671481]
[1748533357356,0.29313907,682.27,680.68,0.46671481]
[1748533357555,0.29313907,682.27,680.54,0.29388426]
[1748533357556,0.29313907,682.27,680.69,0.46671481]
[1748533358157,0.29313907,682.27,680.7,0.46671481]
[1748533359559,0.29313907,682.27,680.74,0.46671481]
[1748533360562,0.29313907,682.27,680.75,0.46671481]
[1748533361160,0.29313907,682.27,680.74,0.46671481]
[1748533361556,0.29313907,682.27,680.73,0.46671481]
[1748533361962,0.29313907,682.27,680.69,0.46671481]
[1748533362359,0.29313907,682.27,680.7,0.46671481]
[1748533363361,0.29313907,682.27,680.69,0.46671481]
[1748533363565,0.29313907,682.27,680.54,0.29388426]
[1748533363566,0.29313907,682.27,680.7,0.46671481]
[1748533364466,0.29313907,682.27,680.67,0.46671481]
[1748533364665,0.29313907,682.27,680.7,0.46671481]
[1748533365165,0.29313907,682.27,680.69,0.46671481]
[1748533365566,0.29313907,682.27,680.67,0.46671481]
[1748533366463,0.29313907,682.27,680.68,0.46671481]
[1748533366668,0.29313907,682.27,680.7,0.46671481]
[1748533367267,0.29313907,682.27,680.54,0.29388426]
[1748533367268,0.29313907,682.27,680.72,0.46671481]
[1748533369065,0.29313907,682.27,680.73,0.46671481]
[1748533369268,0.29313907,682.27,680.54,0.29388426]
[1748533369269,0.29313907,682.27,680.6,0.46671481]
[1748533369471,0.29313907,682.27,680.6,0.76057317]
[1748533370472,0.29313907,682.27,680.61,0.46671481]
[1748533371066,0.29313907,682.27,680.62,0.46671481]
[1748533371472,0.29313907,682.27,680.61,0.46671481]
[1748533371966,0.29313907,682.27,680.63,0.46671481]
[1748533372570,0.29313907,682.27,680.64,0.46671481]
[1748533373468,0.29313907,682.27,680.66,0.46671481]
[1748533374075,0.29313907,682.27,680.64,0.46671481]
[1748533374270,0.29313907,682.27,680.66,0.46671481]
[1748533374574,0.29313907,682.27,680.6,0.29385836]
[1748533379178,0.29313907,682.27,680.61,0.46671481]
[1748533379373,0.29313907,682.27,680.63,0.46671481]
[1748533380374,0.29313907,682.27,680.67,0.46671481]
[1748533381578,0.29313907,682.27,680.69,0.46671481]
[1748533381778,0.29313907,682.27,680.68,0.46671481]
[1748533382284,0.29313907,682.27,680.7,0.46671481]
[1748533382683,0.29313907,682.27,680.6,0.29385836]
[1748533382684,0.29313907,682.27,680.71,0.46671481]
[1748533382884,0.29313907,682.27,680.6,0.29385836]
[1748533382885,0.29313907,682.27,680.99,0.46671481]
[1748533383578,0.29313907,682.27,680.96,0.46671481]
[1748533383782,0.29313907,682.27,680.97,0.46671481]
[1748533384587,0.29313907,682.27,680.95,0.46671481]
[1748533385686,0.29313907,682.27,680.94,0.46671481]
[1748533386485,0.29313907,682.27,680.93,0.46671481]
[1748533386685,0.29313907,682.27,680.91,0.46671481]
[1748533387586,0.29313907,682.27,680.9,0.46671481]
[1748533387787,0.29313907,682.27,680.93,0.46671481]
[1748533388282,0.29313907,682.27,680.92,0.46671481]
[1748533388487,0.29313907,682.27,680.93,0.46671481]
[1748533388983,0.29313907,682.27,680.92,0.46671481]
[1748533389184,0.29313907,682.27,680.93,0.46671481]
[1748533389384,0.29313907,682.27,680.92,0.46671481]
[1748533391591,0.29313907,682.27,680.91,0.46671481]
[1748533392689,0.29313907,682.27,680.95,0.46671481]
[1748533393594,0.25532945,682.12,680.95,0.46671481]
[1748533393794,0.29320784,682.11,680.95,0.46671481]
[1748533394694,0.29320784,682.11,680.9,0.46671481]
[1748533394894,0.29320784,682.11,680.92,0.46671481]
[1748533395990,0.29320784,682.11,680.6,0.29385836]
[1748533395991,0.29320784,682.11,680.93,0.46671481]
[1748533396395,0.29320784,682.11,680.88,0.46671481]
[1748533397198,0.29320784,682.11,680.89,0.46671481]
[1748533397498,0.29320784,682.11,680.88,0.46671481]
[1748533397698,0.29320784,682.11,680.86,0.46671481]
[1748533398294,0.29320784,682.11,680.88,0.46671481]
[1748533398500,0.29320784,682.11,680.82,0.46671481]
[1748533398698,0.29320784,682.11,680.84,0.46671481]
[1748533399195,0.29320784,682.11,680.6,0.29385836]
[1748533409208,0.29320784,682.11,680.79,0.46671481]
[1748533409409,0.29320784,682.11,680.8,0.29377203]
[1748533409608,0.29320784,682.11,680.8,0.76048684]
[1748533409908,0.29320784,682.11,680.8,0.29377203]
[1748533410108,0.29320784,682.11,680.8,0.76048684]
[1748533411207,0.29320784,682.11,680.91,0.46671481]
[1748533411508,0.29320784,682.11,680.93,0.46671481]
[1748533411709,0.29320784,682.11,680.8,0.29377203]
[1748533411710,0.29320784,682.11,680.96,0.46671481]
[1748533412210,0.29320784,682.11,680.98,0.46671481]
[1748533413003,0.29320784,682.11,680.99,0.46671481]
[1748533413310,0.29320784,682.11,681.0,0.46671481]
[1748533414205,0.29320784,682.11,681.01,0.46671481]
[1748533414511,0.29320784,682.11,681.02,0.46671481]
[1748533415510,0.29320784,682.11,681.03,0.46671481]
[1748533415709,0.29320784,682.11,681.02,0.46671481]
[1748533416105,0.29320784,682.11,681.03,0.46671481]
[1748533416508,0.29320784,682.11,681.02,0.46671481]
[1748533416908,0.29320784,682.11,680.8,0.29377203]
[1748533416909,0.29320784,682.11,681.04,0.46671481]
[1748533417515,0.29320784,682.11,681.08,0.46671481]
[1748533418212,0.29320784,682.11,681.09,0.46671481]
[1748533419009,0.29320784,682.11,681.08,0.46671481]
[1748533419411,0.29320784,682.11,681.09,0.46671481]
[1748533420310,0.29320784,682.11,681.1,0.46671481]
[1748533421210,0.29320784,682.11,681.13,0.46671481]
[1748533421411,0.29320784,682.11,681.1,0.46671481]
[1748533421815,0.29320784,682.11,681.09,0.46671481]
[1748533422416,0.29320784,682.11,681.1,0.46671481]
[1748533422917,0.29320784,682.11,680.8,0.29377203]
[1748533422918,0.29320784,682.11,681.01,0.46671481]
[1748533423617,0.29320784,682.11,681.02,0.46671481]
[1748533424017,0.29320784,682.11,680.97,0.46671481]
[1748533424217,0.29320784,682.11,680.99,0.46671481]
[1748533424414,0.29320784,682.11,680.98,0.46671481]
[1748533425518,0.29320784,682.11,680.8,0.29377203]
[1748533425519,0.29320784,682.11,680.99,0.46671481]
[1748533426017,0.29320784,682.11,680.98,0.46671481]
[1748533426818,0.29320784,682.11,680.99,0.46671481]
[1748533427719,0.29320784,682.11,681.0,0.46671481]
[1748533429022,0.29320784,682.11,680.99,0.46671481]
[1748533429322,0.29320784,682.11,680.89,0.46671481]
[1748533429716,0.29320784,682.11,680.9,0.46671481]
[1748533429920,0.29320784,682.11,680.89,0.46671481]
[1748533430121,0.29320784,682.11,680.9,0.46671481]
[1748533430518,0.29320784,682.11,680.91,0.46671481]
[1748533431023,0.29320784,682.11,680.89,0.46671481]
[1748533431221,0.29320784,682.11,680.9,0.46671481]
[1748533431621,0.29320784,682.11,680.91,0.46671481]
[1748533432921,0.29320784,682.11,680.94,0.46671481]
[1748533433920,0.29320784,682.11,680.98,0.46671481]
[1748533434322,0.29320784,682.11,680.99,0.46671481]
[1748533434821,0.29320784,682.11,680.8,0.29377203]
[1748533434822,0.29320784,682.11,680.98,0.46671481]
[1748533435019,0.29320784,682.11,680.99,0.46671481]
[1748533436522,0.29320784,682.11,681.0,0.46671481]
[1748533436821,0.29320784,682.11,680.8,0.29377203]
[1748533436822,0.29320784,682.11,681.01,0.46671481]
[1748533438722,0.29320784,682.11,681.02,0.46671481]
[1748533438920,0.29320784,682.11,681.01,0.46671481]
[1748533439118,0.29320784,682.11,681.07,0.46671481]
[1748533439422,0.29320784,682.11,681.05,0.46671481]
[1748533439822,0.29320784,682.11,681.0,0.46671481]
[1748533440723,0.29320784,682.11,680.99,0.46671481]
[1748533440925,0.29320784,682.11,681.03,0.46671481]
[1748533441422,0.29320784,682.11,680.98,0.46671481]
[1748533441726,0.29320784,682.11,680.96,0.46671481]
[1748533442327,0.29320784,682.11,680.94,0.46671481]
[1748533443023,0.29320784,682.11,680.91,0.46671481]
[1748533443423,0.29320784,682.11,680.8,0.29377203]
[1748533443424,0.29320784,682.11,680.9,0.46671481]
[1748533444326,0.29320784,682.11,680.89,0.46671481]
[1748533445629,0.29320784,682.11,680.88,0.46671481]
[1748533445831,0.29320784,682.11,680.8,0.29377203]
[1748533453935,0.29320784,682.11,680.8,0.76048684]
[1748533454438,0.29320784,682.11,680.8,0.29377203]
[1748533454639,0.29320784,682.11,680.81,0.46671481]
[1748533454937,0.29320784,682.11,680.82,0.46671481]
[1748533455340,0.29320784,682.11,680.81,0.46671481]
[1748533456139,0.29320784,682.11,680.93,0.46671481]
[1748533457040,0.29320784,682.11,680.91,0.46671481]
[1748533459441,0.29320784,682.11,680.8,0.29377203]
[1748533473844,0.29320784,682.11,680.56,0.46671481]
[1748533474451,0.29320784,682.11,680.55,0.46671481]
[1748533474647,0.29320784,682.11,679.33,0.95287607]
[1748533474648,0.29320784,682.11,680.54,0.46671481]
[1748533474849,0.29320784,682.11,680.53,0.46671481]
[1748533475444,0.29320784,682.11,680.52,0.46671481]
[1748533475651,0.29320784,682.11,680.51,0.46671481]
[1748533475845,0.29320784,682.11,680.5,0.46671481]
[1748533476550,0.29320784,682.11,680.49,0.46671481]
[1748533476750,0.29320784,682.11,680.5,0.46671481]
[1748533477448,0.29320784,682.11,680.49,0.46671481]
[1748533478050,0.29320784,682.11,680.65,0.46671481]
[1748533478450,0.29320784,682.11,680.63,0.46671481]
[1748533478847,0.29320784,682.11,679.6,0.95287607]
[1748533478848,0.29320784,682.11,680.64,0.46671481]
[1748533480952,0.29320784,682.11,680.41,0.46671481]
[1748533481150,0.29320784,682.11,680.41,0.76065522]
[1748533481548,0.29320784,682.11,680.41,0.29394041]
[1748533481748,0.29320784,682.11,680.42,0.46671481]
[1748533482253,0.29320784,682.11,680.41,0.29394041]
[1748533490859,0.29320784,682.11,680.42,0.46671481]
[1748533491256,0.29320784,682.11,680.43,0.46671481]
[1748533491455,0.29320784,682.11,680.44,0.46671481]
[1748533492053,0.29320784,682.11,680.46,0.46671481]
[1748533492256,0.29320784,682.11,680.5,0.46671481]
[1748533492456,0.29320784,682.11,680.51,0.46671481]
[1748533493359,0.29320784,682.11,680.52,0.46671481]
[1748533494254,0.29320784,682.11,680.54,0.46671481]
[1748533494458,0.29320784,682.11,680.55,0.46671481]
[1748533495055,0.29320784,682.11,680.57,0.46671481]
[1748533495258,0.29320784,682.11,680.41,0.29394041]
[1748533495259,0.29320784,682.11,680.54,0.46671481]
[1748533495459,0.29320784,682.11,680.56,0.46671481]
[1748533496453,0.29320784,682.11,680.67,0.46671481]
[1748533497456,0.29320784,682.11,680.69,0.46671481]
[1748533498158,0.29320784,682.11,680.7,0.46671481]
[1748533498355,0.29320784,682.11,680.72,0.46671481]
[1748533498559,0.29320784,682.11,680.74,0.46671481]
[1748533499361,0.29320784,682.11,680.76,0.46671481]
[1748533500560,0.29320784,682.11,680.77,0.46671481]
[1748533500958,0.29320784,682.11,680.74,0.46671481]
[1748533501161,0.29320784,682.11,680.72,0.46671481]
[1748533501364,0.29320784,682.11,680.73,0.46671481]
[1748533501562,0.29320784,682.11,680.74,0.46671481]
[1748533502161,0.29320784,682.11,680.65,0.46671481]
[1748533502366,0.29320784,682.11,680.41,0.76065522]
[1748533502565,0.29320784,682.11,680.41,0.29394041]
[1748533516678,0.29320784,682.11,678.61,0.56005777]
[1748533516679,0.29320784,682.11,679.83,0.46671481]
[1748533516878,0.29320784,682.11,679.85,0.29418254]
[1748533519376,0.29320784,682.11,679.93,0.46671481]
[1748533519581,0.29320784,682.11,679.94,0.2941436]
[1748533530192,0.29320784,682.11,680.0,0.46671481]
[1748533530391,0.29320784,682.11,680.02,0.46671481]
[1748533531195,0.29320784,682.11,679.97,0.46671481]
[1748533531395,0.29320784,682.11,679.99,0.46671481]
[1748533531797,0.29320784,682.11,680.01,0.46671481]
[1748533532192,0.29320784,682.11,680.02,0.46671481]
[1748533532397,0.29320784,682.11,680.04,0.46671481]
[1748533532696,0.29320784,682.11,680.03,0.46671481]
[1748533532897,0.29320784,682.11,680.06,0.46671481]
[1748533533197,0.29320784,682.11,680.02,0.46671481]
[1748533533394,0.29320784,682.11,679.98,0.46671481]
[1748533534098,0.29320784,682.11,679.94,0.2941436]
[1748533537997,0.29320784,682.11,679.94,0.76085841]
[1748533538199,0.29320784,682.11,680.01,0.46671481]
[1748533538696,0.29320784,682.11,679.98,0.46671481]
[1748533539000,0.29320784,682.11,679.97,0.46671481]
[1748533539902,0.29320784,682.11,679.94,0.2941436]
[1748533539903,0.29320784,682.11,679.98,0.46671481]
[1748533540102,0.29320784,682.11,679.97,0.46671481]
[1748533540401,0.29320784,682.11,679.94,0.2941436]
[1748533563818,0.29320784,682.11,679.43,0.46550118]
[1748533564018,0.29320784,682.11,679.49,0.46550118]
[1748533564419,0.29320784,682.11,679.5,0.29433406]
[1748533564622,0.29320784,682.11,679.52,0.46550118]
[1748533564929,0.29320784,682.11,679.53,0.29432107]
[1748533565725,0.29320784,682.11,679.54,0.46550118]
[1748533565926,0.29320784,682.11,679.55,0.29431241]
[1748533567722,0.29320784,682.11,679.56,0.46550118]
[1748533567927,0.29320784,682.11,679.57,0.29430375]
[1748533568428,0.29320784,682.11,679.66,0.46550118]
[1748533568722,0.29320784,682.11,679.68,0.46550118]
[1748533568923,0.29320784,682.11,679.69,0.75975297]
[1748533569327,0.29320784,682.11,679.7,0.29424746]
[1748533571024,0.29320784,682.11,679.74,0.46623005]
[1748533571323,0.29320784,682.11,679.75,0.29422581]
[1748533571828,0.29320784,682.11,679.75,0.76045586]
[1748533572226,0.29320784,682.11,679.81,0.46623005]
[1748533572630,0.29320784,682.11,679.82,0.46623005]
[1748533573126,0.29320784,682.11,679.81,0.46623005]
[1748533573626,0.29320784,682.11,679.83,0.46623005]
[1748533574326,0.29320784,682.11,679.82,0.46623005]
[1748533574630,0.29320784,682.11,679.86,0.46623005]
[1748533575926,0.29320784,682.11,679.87,0.29417388]
[1748533576330,0.29320784,682.11,679.93,0.46623005]
[1748533576526,0.29320784,682.11,680.03,0.46623005]
[1748533577031,0.29320784,682.11,680.05,0.46623005]
[1748533577225,0.29320784,682.11,680.06,0.46623005]
[1748533577430,0.29320784,682.11,680.05,0.46623005]
[1748533577931,0.29320784,682.11,680.08,0.46623005]
[1748533578127,0.29320784,682.11,680.07,0.46623005]
[1748533578329,0.29320784,682.11,680.08,0.46623005]
[1748533578530,0.29320784,682.11,680.06,0.46623005]
[1748533578728,0.29320784,682.11,679.87,0.29417388]
[1748533578729,0.29320784,682.11,680.11,0.46623005]
[1748533578931,0.29320784,682.11,680.12,0.46623005]
[1748533579129,0.29320784,682.11,680.14,0.46623005]
[1748533579331,0.29320784,682.11,680.0,0.46623005]
[1748533579529,0.29320784,682.11,679.97,0.46623005]
[1748533580435,0.29320784,682.11,679.94,0.46623005]
[1748533580634,0.29320784,682.11,679.94,0.76037365]
[1748533581035,0.29320784,682.11,679.97,0.46623005]
[1748533581436,0.29320784,682.11,679.94,0.76037365]
[1748533581835,0.29320784,682.11,679.96,0.46623005]
[1748533582034,0.29320784,682.11,679.97,0.46623005]
[1748533582234,0.29320784,682.11,679.98,0.46623005]
[1748533582437,0.29320784,682.11,679.95,0.46623005]
[1748533582835,0.29320784,682.11,679.94,0.76037365]
[1748533583037,0.29320784,682.11,679.95,0.46623005]
[1748533583437,0.29320784,682.11,679.94,0.2941436]
[1748533585235,0.29320784,682.11,680.02,0.46623005]
[1748533585436,0.29320784,682.11,680.01,0.46623005]
[1748533585634,0.29320784,682.11,680.15,0.46623005]
[1748533585839,0.29320784,682.11,679.94,0.2941436]
[1748533585840,0.29320784,682.11,680.12,0.46623005]
[1748533586035,0.29320784,682.11,680.1,0.46623005]
[1748533586435,0.29320784,682.11,680.08,0.46623005]
[1748533586641,0.29320784,682.11,680.09,0.46623005]
[1748533586936,0.29320784,682.11,680.05,0.46623005]
[1748533587342,0.29320784,682.11,680.04,0.46623005]
[1748533587542,0.29320784,682.11,680.05,0.46623005]
[1748533587838,0.29320784,682.11,680.04,0.46623005]
[1748533588343,0.29320784,682.11,680.05,0.29409602]
[1748533588742,0.29320784,682.11,680.09,0.46623005]
[1748533588943,0.29320784,682.11,680.1,0.2940744]
[1748533599349,0.25550942,681.61,680.1,0.2940744]
[1748533599548,0.29342723,681.6,680.1,0.2940744]
[1748533609853,0.29342723,681.6,680.1,0.76030445]
[1748533610548,0.29342723,681.6,680.11,0.46623005]
[1748533610854,0.29342723,681.6,680.12,0.46623005]
[1748533611451,0.29342723,681.6,680.13,0.46623005]
[1748533611848,0.29342723,681.6,680.16,0.46623005]
[1748533612151,0.29342723,681.6,680.15,0.46623005]
[1748533612350,0.29342723,681.6,680.16,0.46623005]
[1748533613552,0.29342723,681.6,680.17,0.46623005]
[1748533613955,0.29342723,681.6,680.12,0.46623005]
[1748533615257,0.29342723,681.6,680.13,0.46623005]
[1748533615853,0.29342723,681.6,680.12,0.46623005]
[1748533616055,0.29342723,681.6,680.13,0.46623005]
[1748533618559,0.29342723,681.6,680.18,0.46623005]
[1748533619365,0.29342723,681.6,680.17,0.46623005]
[1748533620566,0.29342723,681.6,680.16,0.46623005]
[1748533620961,0.29342723,681.6,680.1,0.2940744]
[1748533628275,0.29342723,681.6,680.16,0.46623005]
[1748533628777,0.29342723,681.6,680.24,0.46623005]
[1748533629376,0.29342723,681.6,680.26,0.46623005]
[1748533629576,0.29342723,681.6,680.27,0.46623005]
[1748533629773,0.29342723,681.6,680.1,0.2940744]
[1748533629774,0.29342723,681.6,680.35,0.46623005]
[1748533630479,0.29342723,681.6,680.37,0.46623005]
[1748533630678,0.29342723,681.6,680.38,0.46623005]
[1748533631575,0.29342723,681.6,680.4,0.46623005]
[1748533631777,0.29342723,681.6,680.1,0.2940744]
[1748533631778,0.29342723,681.6,680.41,0.46623005]
[1748533632172,0.29342723,681.6,680.42,0.46623005]
[1748533633475,0.29342723,681.6,680.44,0.46623005]
[1748533634073,0.29342723,681.6,680.46,0.46623005]
[1748533634478,0.29342723,681.6,680.1,0.2940744]
[1748533634479,0.29342723,681.6,680.45,0.46623005]
[1748533634678,0.29342723,681.6,680.46,0.46623005]
[1748533635475,0.29342723,681.6,680.47,0.46623005]
[1748533636180,0.29342723,681.6,680.48,0.46623005]
[1748533636476,0.29342723,681.6,680.43,0.46623005]
[1748533636675,0.29342723,681.6,680.42,0.46623005]
[1748533637177,0.29342723,681.6,680.43,0.46623005]
[1748533637376,0.29342723,681.6,680.4,0.46623005]
[1748533637882,0.29342723,681.6,680.39,0.46623005]
[1748533638386,0.29342723,681.6,680.38,0.46623005]
[1748533638581,0.29342723,681.6,680.1,0.2940744]
[1748533638582,0.29342723,681.6,680.39,0.46623005]
[1748533638783,0.29342723,681.6,680.4,0.46623005]
[1748533639084,0.29342723,681.6,680.37,0.46623005]
[1748533639486,0.29342723,681.6,680.21,0.46623005]
[1748533639684,0.29342723,681.6,680.18,0.46623005]
[1748533641284,0.29342723,681.6,680.17,0.46623005]
[1748533642586,0.29342723,681.6,680.13,0.46623005]
[1748533642786,0.29342723,681.6,680.14,0.2940571]
[1748533646391,0.29342723,681.6,680.14,0.76028715]
[1748533646588,0.29342723,681.6,680.14,0.2940571]
[1748533647589,0.29342723,681.6,680.2,0.46623005]
[1748533647789,0.29342723,681.6,680.19,0.46623005]
[1748533649393,0.29342723,681.6,680.2,0.46623005]
[1748533650490,0.29342723,681.6,680.22,0.46623005]
[1748533650885,0.29342723,681.6,680.27,0.46623005]
[1748533651487,0.29342723,681.6,680.28,0.46623005]
[1748533652285,0.29342723,681.6,680.42,0.46623005]
[1748533652485,0.29342723,681.6,680.43,0.46623005]
[1748533653391,0.29342723,681.6,680.45,0.46623005]
[1748533653689,0.29342723,681.6,680.46,0.46623005]
[1748533653891,0.29342723,681.6,680.14,0.2940571]